Workbook

Sheet Marchandises
C3: Nouvelle marchandise
C4: Veuillez saisir les informations de chaque marchandise
C5: Liste des marchandises :
C7: Référence | D7: Désignation | E7: Catégorie | F7: Unité | G7: Seuil d'alerte | H7: Stock initial | I7: Prix unitaire | J7: Total
C8: S2 | D8: IPHONE 13 PRO | E8: SmartPhone | F8: 1 unité | G8: 10 | H8: 3 | I8: 1400 | J8: =listeProduits[[#This Row],[Stock initial]]*listeProduits[[#This Row],[Prix unitaire]] -> 4200
C9: C2 | D9: NINTENDO SWITCH | E9: Consoles | F9: 1 unité | G9: 10 | H9: 6 | I9: 400 | J9: =listeProduits[[#This Row],[Stock initial]]*listeProduits[[#This Row],[Prix unitaire]] -> 2400
C10: C1 | D10: PLAYSTATION PS5 | E10: Consoles | F10: 1 unité | G10: 10 | H10: 3 | I10: 750 | J10: =listeProduits[[#This Row],[Stock initial]]*listeProduits[[#This Row],[Prix unitaire]] -> 2250
C11: E4 | D11: Cuisinière CANDY | E11: Electro | F11: 1 unité | G11: 10 | H11: 0 | I11: 0 | J11: =listeProduits[[#This Row],[Stock initial]]*listeProduits[[#This Row],[Prix unitaire]] -> 0
C12: E3 | D12: Cuisinière SIERA | E12: Electro | F12: 1 unité | G12: 10 | H12: 6 | I12: 150 | J12: =listeProduits[[#This Row],[Stock initial]]*listeProduits[[#This Row],[Prix unitaire]] -> 900
C13: E2 | D13: Réfrigérateur SIERA | E13: Electro | F13: 1 unité | G13: 10 | H13: 3 | I13: 300 | J13: =listeProduits[[#This Row],[Stock initial]]*listeProduits[[#This Row],[Prix unitaire]] -> 900
C14: E1 | D14: Réfrigérateur WHIRLPOOL | E14: Electro | F14: 1 unité | G14: 10 | H14: 5 | I14: 700 | J14: =listeProduits[[#This Row],[Stock initial]]*listeProduits[[#This Row],[Prix unitaire]] -> 3500
C15: S1 | D15: GOOGLE PIXEL 5 | E15: SmartPhone | F15: 1 unité | G15: 10 | H15: 20 | I15: 600 | J15: =listeProduits[[#This Row],[Stock initial]]*listeProduits[[#This Row],[Prix unitaire]] -> 12000
C16: B1 | D16: Oreo | E16: Biscuits | F16: 1 unité | G16: 10 | H16: 10 | I16: 0.2 | J16: =listeProduits[[#This Row],[Stock initial]]*listeProduits[[#This Row],[Prix unitaire]] -> 2
C17: B2 | D17: Oreo | E17: Biscuits | F17: Pack de 10 unités | G17: 50 | H17: 15 | I17: 2 | J17: =listeProduits[[#This Row],[Stock initial]]*listeProduits[[#This Row],[Prix unitaire]] -> 30
C18: B3 | D18: Oreo | E18: Biscuits | F18: Pack de 20 unités | G18: 20 | H18: 5 | I18: 4 | J18: =listeProduits[[#This Row],[Stock initial]]*listeProduits[[#This Row],[Prix unitaire]] -> 20

Sheet Entrées
C3: Liste des entrées :
C4: Détails de toutes les transactions d'entrée
C6: Veuillez saisir les informations d'achats
C8: Numéro | D8: Date | E8: Référence | F8: Désignation | G8: Catégorie | H8: Unité | I8: Coût d'achat | J8: Quantité | K8: Total
C9: =C10+1 -> 54 | D9: 2022-05-17 | E9: B2 | F9: Oreo | G9: Biscuits | H9: Pack de 10 unités | I9: 2 | J9: 25 | K9: =listeAchats[[#This Row],[Coût d''achat]]*listeAchats[[#This Row],[Quantité]] -> 50
C10: =C11+1 -> 53 | D10: 2022-05-17 | E10: E1 | F10: Réfrigérateur WHIRLPOOL | G10: Electro | H10: 1 unité | I10: 700 | J10: 5 | K10: =listeAchats[[#This Row],[Coût d''achat]]*listeAchats[[#This Row],[Quantité]] -> 3500
C11: =C12+1 -> 52 | D11: 2022-05-05 | E11: E4 | F11: Cuisinière CANDY | G11: Electro | H11: 1 unité | I11: 500 | J11: 10 | K11: =listeAchats[[#This Row],[Coût d''achat]]*listeAchats[[#This Row],[Quantité]] -> 5000
C12: 51 | D12: 2022-04-05 | E12: E4 | F12: Cuisinière CANDY | G12: Electro | H12: 1 unité | I12: 500 | J12: 10 | K12: =listeAchats[[#This Row],[Coût d''achat]]*listeAchats[[#This Row],[Quantité]] -> 5000
C13: 50 | D13: 2022-03-03 | E13: E4 | F13: Cuisinière CANDY | G13: Electro | H13: 1 unité | I13: 500 | J13: 10 | K13: =listeAchats[[#This Row],[Coût d''achat]]*listeAchats[[#This Row],[Quantité]] -> 5000
C14: 49 | D14: 2022-02-03 | E14: E4 | F14: Cuisinière CANDY | G14: Electro | H14: 1 unité | I14: 500 | J14: 10 | K14: =listeAchats[[#This Row],[Coût d''achat]]*listeAchats[[#This Row],[Quantité]] -> 5000
C15: 48 | D15: 2022-01-20 | E15: E4 | F15: Cuisinière CANDY | G15: Electro | H15: 1 unité | I15: 500 | J15: 20 | K15: =listeAchats[[#This Row],[Coût d''achat]]*listeAchats[[#This Row],[Quantité]] -> 10000
C16: 47 | D16: 2022-05-04 | E16: E3 | F16: Cuisinière SIERA | G16: Electro | H16: 1 unité | I16: 150 | J16: 5 | K16: =listeAchats[[#This Row],[Coût d''achat]]*listeAchats[[#This Row],[Quantité]] -> 750
C17: 46 | D17: 2022-04-04 | E17: E3 | F17: Cuisinière SIERA | G17: Electro | H17: 1 unité | I17: 150 | J17: 10 | K17: =listeAchats[[#This Row],[Coût d''achat]]*listeAchats[[#This Row],[Quantité]] -> 1500
C18: 45 | D18: 2022-03-03 | E18: E3 | F18: Cuisinière SIERA | G18: Electro | H18: 1 unité | I18: 150 | J18: 20 | K18: =listeAchats[[#This Row],[Coût d''achat]]*listeAchats[[#This Row],[Quantité]] -> 3000
C19: 44 | D19: 2022-02-02 | E19: E3 | F19: Cuisinière SIERA | G19: Electro | H19: 1 unité | I19: 150 | J19: 10 | K19: =listeAchats[[#This Row],[Coût d''achat]]*listeAchats[[#This Row],[Quantité]] -> 1500
C20: 43 | D20: 2022-01-01 | E20: E3 | F20: Cuisinière SIERA | G20: Electro | H20: 1 unité | I20: 150 | J20: 20 | K20: =listeAchats[[#This Row],[Coût d''achat]]*listeAchats[[#This Row],[Quantité]] -> 3000
C21: 42 | D21: 2022-05-09 | E21: E2 | F21: Réfrigérateur SIERA | G21: Electro | H21: 1 unité | I21: 300 | J21: 4 | K21: =listeAchats[[#This Row],[Coût d''achat]]*listeAchats[[#This Row],[Quantité]] -> 1200
C22: 41 | D22: 2022-04-04 | E22: E2 | F22: Réfrigérateur SIERA | G22: Electro | H22: 1 unité | I22: 300 | J22: 4 | K22: =listeAchats[[#This Row],[Coût d''achat]]*listeAchats[[#This Row],[Quantité]] -> 1200
C23: 40 | D23: 2022-03-06 | E23: E2 | F23: Réfrigérateur SIERA | G23: Electro | H23: 1 unité | I23: 300 | J23: 2 | K23: =listeAchats[[#This Row],[Coût d''achat]]*listeAchats[[#This Row],[Quantité]] -> 600
C24: 39 | D24: 2022-02-15 | E24: E2 | F24: Réfrigérateur SIERA | G24: Electro | H24: 1 unité | I24: 300 | J24: 10 | K24: =listeAchats[[#This Row],[Coût d''achat]]*listeAchats[[#This Row],[Quantité]] -> 3000
C25: 38 | D25: 2022-01-16 | E25: E2 | F25: Réfrigérateur SIERA | G25: Electro | H25: 1 unité | I25: 300 | J25: 20 | K25: =listeAchats[[#This Row],[Coût d''achat]]*listeAchats[[#This Row],[Quantité]] -> 6000
C26: 37 | D26: 2022-05-06 | E26: E1 | F26: Réfrigérateur WHIRLPOOL | G26: Electro | H26: 1 unité | I26: 700 | J26: 6 | K26: =listeAchats[[#This Row],[Coût d''achat]]*listeAchats[[#This Row],[Quantité]] -> 4200
C27: 36 | D27: 2022-04-06 | E27: E1 | F27: Réfrigérateur WHIRLPOOL | G27: Electro | H27: 1 unité | I27: 700 | J27: 2 | K27: =listeAchats[[#This Row],[Coût d''achat]]*listeAchats[[#This Row],[Quantité]] -> 1400
C28: 35 | D28: 2022-03-03 | E28: E1 | F28: Réfrigérateur WHIRLPOOL | G28: Electro | H28: 1 unité | I28: 700 | J28: 4 | K28: =listeAchats[[#This Row],[Coût d''achat]]*listeAchats[[#This Row],[Quantité]] -> 2800
C29: 34 | D29: 2022-02-03 | E29: E1 | F29: Réfrigérateur WHIRLPOOL | G29: Electro | H29: 1 unité | I29: 700 | J29: 3 | K29: =listeAchats[[#This Row],[Coût d''achat]]*listeAchats[[#This Row],[Quantité]] -> 2100
C30: 33 | D30: 2022-01-22 | E30: E1 | F30: Réfrigérateur WHIRLPOOL | G30: Electro | H30: 1 unité | I30: 700 | J30: 4 | K30: =listeAchats[[#This Row],[Coût d''achat]]*listeAchats[[#This Row],[Quantité]] -> 2800
C31: 32 | D31: 2022-05-22 | E31: C2 | F31: NINTENDO SWITCH | G31: Consoles | H31: 1 unité | I31: 405 | J31: 5 | K31: =listeAchats[[#This Row],[Coût d''achat]]*listeAchats[[#This Row],[Quantité]] -> 2025
C32: 31 | D32: 2022-04-05 | E32: C2 | F32: NINTENDO SWITCH | G32: Consoles | H32: 1 unité | I32: 410 | J32: 10 | K32: =listeAchats[[#This Row],[Coût d''achat]]*listeAchats[[#This Row],[Quantité]] -> 4100
C33: 30 | D33: 2022-03-05 | E33: C2 | F33: NINTENDO SWITCH | G33: Consoles | H33: 1 unité | I33: 420 | J33: 10 | K33: =listeAchats[[#This Row],[Coût d''achat]]*listeAchats[[#This Row],[Quantité]] -> 4200
C34: 29 | D34: 2022-02-10 | E34: C2 | F34: NINTENDO SWITCH | G34: Consoles | H34: 1 unité | I34: 400 | J34: 10 | K34: =listeAchats[[#This Row],[Coût d''achat]]*listeAchats[[#This Row],[Quantité]] -> 4000
C35: 28 | D35: 2022-01-02 | E35: C2 | F35: NINTENDO SWITCH | G35: Consoles | H35: 1 unité | I35: 400 | J35: 5 | K35: =listeAchats[[#This Row],[Coût d''achat]]*listeAchats[[#This Row],[Quantité]] -> 2000
C36: 27 | D36: 2022-05-08 | E36: C1 | F36: PLAYSTATION PS5 | G36: Consoles | H36: 1 unité | I36: 760 | J36: 20 | K36: =listeAchats[[#This Row],[Coût d''achat]]*listeAchats[[#This Row],[Quantité]] -> 15200
C37: 26 | D37: 2022-04-05 | E37: C1 | F37: PLAYSTATION PS5 | G37: Consoles | H37: 1 unité | I37: 750 | J37: 5 | K37: =listeAchats[[#This Row],[Coût d''achat]]*listeAchats[[#This Row],[Quantité]] -> 3750
C38: 25 | D38: 2022-03-03 | E38: C1 | F38: PLAYSTATION PS5 | G38: Consoles | H38: 1 unité | I38: 745 | J38: 10 | K38: =listeAchats[[#This Row],[Coût d''achat]]*listeAchats[[#This Row],[Quantité]] -> 7450
C39: 24 | D39: 2022-02-26 | E39: C1 | F39: PLAYSTATION PS5 | G39: Consoles | H39: 1 unité | I39: 750 | J39: 10 | K39: =listeAchats[[#This Row],[Coût d''achat]]*listeAchats[[#This Row],[Quantité]] -> 7500
C40: 23 | D40: 2022-01-02 | E40: C1 | F40: PLAYSTATION PS5 | G40: Consoles | H40: 1 unité | I40: 740 | J40: 5 | K40: =listeAchats[[#This Row],[Coût d''achat]]*listeAchats[[#This Row],[Quantité]] -> 3700
C41: 22 | D41: 2022-05-02 | E41: S2 | F41: IPHONE 13 PRO | G41: SmartPhone | H41: 1 unité | I41: 1400 | J41: 30 | K41: =listeAchats[[#This Row],[Coût d''achat]]*listeAchats[[#This Row],[Quantité]] -> 42000
C42: 21 | D42: 2022-04-25 | E42: S2 | F42: IPHONE 13 PRO | G42: SmartPhone | H42: 1 unité | I42: 1400 | J42: 20 | K42: =listeAchats[[#This Row],[Coût d''achat]]*listeAchats[[#This Row],[Quantité]] -> 28000
C43: =C44+1 -> 20 | D43: 2022-03-26 | E43: S2 | F43: IPHONE 13 PRO | G43: SmartPhone | H43: 1 unité | I43: 1400 | J43: 10 | K43: =listeAchats[[#This Row],[Coût d''achat]]*listeAchats[[#This Row],[Quantité]] -> 14000
C44: 19 | D44: 2022-02-02 | E44: S2 | F44: IPHONE 13 PRO | G44: SmartPhone | H44: 1 unité | I44: 1400 | J44: 6 | K44: =listeAchats[[#This Row],[Coût d''achat]]*listeAchats[[#This Row],[Quantité]] -> 8400
C45: 18 | D45: 2022-02-01 | E45: S2 | F45: IPHONE 13 PRO | G45: SmartPhone | H45: 1 unité | I45: 1400 | J45: 30 | K45: =listeAchats[[#This Row],[Coût d''achat]]*listeAchats[[#This Row],[Quantité]] -> 42000
C46: 17 | D46: 2022-05-08 | E46: S1 | F46: GOOGLE PIXEL 5 | G46: SmartPhone | H46: 1 unité | I46: 620 | J46: 3 | K46: =listeAchats[[#This Row],[Coût d''achat]]*listeAchats[[#This Row],[Quantité]] -> 1860
C47: 16 | D47: 2022-04-05 | E47: S1 | F47: GOOGLE PIXEL 5 | G47: SmartPhone | H47: 1 unité | I47: 600 | J47: 5 | K47: =listeAchats[[#This Row],[Coût d''achat]]*listeAchats[[#This Row],[Quantité]] -> 3000
C48: 15 | D48: 2022-03-03 | E48: S1 | F48: GOOGLE PIXEL 5 | G48: SmartPhone | H48: 1 unité | I48: 550 | J48: 2 | K48: =listeAchats[[#This Row],[Coût d''achat]]*listeAchats[[#This Row],[Quantité]] -> 1100
C49: 14 | D49: 2022-02-05 | E49: S1 | F49: GOOGLE PIXEL 5 | G49: SmartPhone | H49: 1 unité | I49: 600 | J49: 5 | K49: =listeAchats[[#This Row],[Coût d''achat]]*listeAchats[[#This Row],[Quantité]] -> 3000
C50: 13 | D50: 2022-01-20 | E50: S1 | F50: GOOGLE PIXEL 5 | G50: SmartPhone | H50: 1 unité | I50: 600 | J50: 40 | K50: =listeAchats[[#This Row],[Coût d''achat]]*listeAchats[[#This Row],[Quantité]] -> 24000
C51: 12 | D51: 2022-05-08 | E51: B3 | F51: Oreo | G51: Biscuits | H51: Pack de 20 unités | I51: 4 | J51: 250 | K51: =listeAchats[[#This Row],[Coût d''achat]]*listeAchats[[#This Row],[Quantité]] -> 1000
C52: 11 | D52: 2022-04-25 | E52: B3 | F52: Oreo | G52: Biscuits | H52: Pack de 20 unités | I52: 4 | J52: 30 | K52: =listeAchats[[#This Row],[Coût d''achat]]*listeAchats[[#This Row],[Quantité]] -> 120
C53: 10 | D53: 2022-03-20 | E53: B3 | F53: Oreo | G53: Biscuits | H53: Pack de 20 unités | I53: 4 | J53: 20 | K53: =listeAchats[[#This Row],[Coût d''achat]]*listeAchats[[#This Row],[Quantité]] -> 80
C54: 9 | D54: 2022-02-05 | E54: B3 | F54: Oreo | G54: Biscuits | H54: Pack de 20 unités | I54: 4 | J54: 10 | K54: =listeAchats[[#This Row],[Coût d''achat]]*listeAchats[[#This Row],[Quantité]] -> 40
C55: 8 | D55: 2022-05-05 | E55: B2 | F55: Oreo | G55: Biscuits | H55: Pack de 10 unités | I55: 2 | J55: 50 | K55: =listeAchats[[#This Row],[Coût d''achat]]*listeAchats[[#This Row],[Quantité]] -> 100
C56: 7 | D56: 2022-04-05 | E56: B2 | F56: Oreo | G56: Biscuits | H56: Pack de 10 unités | I56: 2 | J56: 5 | K56: =listeAchats[[#This Row],[Coût d''achat]]*listeAchats[[#This Row],[Quantité]] -> 10
C57: 6 | D57: 2022-03-02 | E57: B2 | F57: Oreo | G57: Biscuits | H57: Pack de 10 unités | I57: 2 | J57: 4 | K57: =listeAchats[[#This Row],[Coût d''achat]]*listeAchats[[#This Row],[Quantité]] -> 8
C58: 5 | D58: 2022-02-25 | E58: B2 | F58: Oreo | G58: Biscuits | H58: Pack de 10 unités | I58: 2 | J58: 60 | K58: =listeAchats[[#This Row],[Coût d''achat]]*listeAchats[[#This Row],[Quantité]] -> 120
C59: 4 | D59: 2022-05-05 | E59: B1 | F59: Oreo | G59: Biscuits | H59: 1 unité | I59: 0.24 | J59: 10 | K59: =listeAchats[[#This Row],[Coût d''achat]]*listeAchats[[#This Row],[Quantité]] -> 2.4
C60: 3 | D60: 2022-04-03 | E60: B1 | F60: Oreo | G60: Biscuits | H60: 1 unité | I60: 0.23 | J60: 5 | K60: =listeAchats[[#This Row],[Coût d''achat]]*listeAchats[[#This Row],[Quantité]] -> 1.15
C61: 2 | D61: 2022-03-20 | E61: B1 | F61: Oreo | G61: Biscuits | H61: 1 unité | I61: 0.2 | J61: 50 | K61: =listeAchats[[#This Row],[Coût d''achat]]*listeAchats[[#This Row],[Quantité]] -> 10
C62: 1 | D62: 2022-02-02 | E62: B1 | F62: Oreo | G62: Biscuits | H62: 1 unité | I62: 0.22 | J62: 20 | K62: =listeAchats[[#This Row],[Coût d''achat]]*listeAchats[[#This Row],[Quantité]] -> 4.4

Sheet Sorties
C3: Liste des sorties :
C4: Détails de toutes les transactions de sortie
C6: Veuillez saisir les informations de vente
C8: Numéro | D8: Date | E8: Référence | F8: Désignation | G8: Catégorie | H8: Unité | I8: Prix de vente | J8: Quantité | K8: Total
C9: =C10+1 -> 60 | D9: 2022-05-17 | E9: B2 | F9: Oreo | G9: Biscuits | H9: Pack de 10 unités | I9: 2.5 | J9: 10 | K9: =listeVentes[[#This Row],[Prix de vente]]*listeVentes[[#This Row],[Quantité]] -> 25
C10: =C11+1 -> 59 | D10: 2022-05-17 | E10: E1 | F10: Réfrigérateur WHIRLPOOL | G10: Electro | H10: 1 unité | I10: 800 | J10: 3 | K10: =listeVentes[[#This Row],[Prix de vente]]*listeVentes[[#This Row],[Quantité]] -> 2400
C11: =C12+1 -> 58 | D11: 2022-04-19 | E11: S1 | F11: GOOGLE PIXEL 5 | G11: SmartPhone | H11: 1 unité | I11: 650 | J11: 2 | K11: =listeVentes[[#This Row],[Prix de vente]]*listeVentes[[#This Row],[Quantité]] -> 1300
C12: =C13+1 -> 57 | D12: 2022-04-11 | E12: B1 | F12: Oreo | G12: Biscuits | H12: 1 unité | I12: 0.2 | J12: 20 | K12: =listeVentes[[#This Row],[Prix de vente]]*listeVentes[[#This Row],[Quantité]] -> 4
C13: 56 | D13: 2022-05-06 | E13: E4 | F13: Cuisinière CANDY | G13: Electro | H13: 1 unité | I13: 600 | J13: 10 | K13: =listeVentes[[#This Row],[Prix de vente]]*listeVentes[[#This Row],[Quantité]] -> 6000
C14: 55 | D14: 2022-04-04 | E14: E4 | F14: Cuisinière CANDY | G14: Electro | H14: 1 unité | I14: 590 | J14: 20 | K14: =listeVentes[[#This Row],[Prix de vente]]*listeVentes[[#This Row],[Quantité]] -> 11800
C15: 54 | D15: 2022-03-03 | E15: E4 | F15: Cuisinière CANDY | G15: Electro | H15: 1 unité | I15: 580 | J15: 20 | K15: =listeVentes[[#This Row],[Prix de vente]]*listeVentes[[#This Row],[Quantité]] -> 11600
C16: 53 | D16: 2022-02-06 | E16: E4 | F16: Cuisinière CANDY | G16: Electro | H16: 1 unité | I16: 600 | J16: 5 | K16: =listeVentes[[#This Row],[Prix de vente]]*listeVentes[[#This Row],[Quantité]] -> 3000
C17: 52 | D17: 2022-01-01 | E17: E4 | F17: Cuisinière CANDY | G17: Electro | H17: 1 unité | I17: 600 | J17: 5 | K17: =listeVentes[[#This Row],[Prix de vente]]*listeVentes[[#This Row],[Quantité]] -> 3000
C18: 51 | D18: 2022-05-05 | E18: E3 | F18: Cuisinière SIERA | G18: Electro | H18: 1 unité | I18: 220 | J18: 3 | K18: =listeVentes[[#This Row],[Prix de vente]]*listeVentes[[#This Row],[Quantité]] -> 660
C19: 50 | D19: 2022-04-04 | E19: E3 | F19: Cuisinière SIERA | G19: Electro | H19: 1 unité | I19: 200 | J19: 5 | K19: =listeVentes[[#This Row],[Prix de vente]]*listeVentes[[#This Row],[Quantité]] -> 1000
C20: 49 | D20: 2022-03-05 | E20: E3 | F20: Cuisinière SIERA | G20: Electro | H20: 1 unité | I20: 250 | J20: 10 | K20: =listeVentes[[#This Row],[Prix de vente]]*listeVentes[[#This Row],[Quantité]] -> 2500
C21: 48 | D21: 2022-02-05 | E21: E3 | F21: Cuisinière SIERA | G21: Electro | H21: 1 unité | I21: 200 | J21: 5 | K21: =listeVentes[[#This Row],[Prix de vente]]*listeVentes[[#This Row],[Quantité]] -> 1000
C22: 47 | D22: 2022-01-01 | E22: E3 | F22: Cuisinière SIERA | G22: Electro | H22: 1 unité | I22: 200 | J22: 5 | K22: =listeVentes[[#This Row],[Prix de vente]]*listeVentes[[#This Row],[Quantité]] -> 1000
C23: 46 | D23: 2022-05-04 | E23: E2 | F23: Réfrigérateur SIERA | G23: Electro | H23: 1 unité | I23: 400 | J23: 2 | K23: =listeVentes[[#This Row],[Prix de vente]]*listeVentes[[#This Row],[Quantité]] -> 800
C24: 45 | D24: 2022-04-04 | E24: E2 | F24: Réfrigérateur SIERA | G24: Electro | H24: 1 unité | I24: 400 | J24: 7 | K24: =listeVentes[[#This Row],[Prix de vente]]*listeVentes[[#This Row],[Quantité]] -> 2800
C25: 44 | D25: 2022-03-04 | E25: E2 | F25: Réfrigérateur SIERA | G25: Electro | H25: 1 unité | I25: 400 | J25: 5 | K25: =listeVentes[[#This Row],[Prix de vente]]*listeVentes[[#This Row],[Quantité]] -> 2000
C26: 43 | D26: 2022-02-20 | E26: E2 | F26: Réfrigérateur SIERA | G26: Electro | H26: 1 unité | I26: 400 | J26: 5 | K26: =listeVentes[[#This Row],[Prix de vente]]*listeVentes[[#This Row],[Quantité]] -> 2000
C27: 42 | D27: 2022-01-02 | E27: E2 | F27: Réfrigérateur SIERA | G27: Electro | H27: 1 unité | I27: 400 | J27: 5 | K27: =listeVentes[[#This Row],[Prix de vente]]*listeVentes[[#This Row],[Quantité]] -> 2000
C28: 41 | D28: 2022-05-15 | E28: E1 | F28: Réfrigérateur WHIRLPOOL | G28: Electro | H28: 1 unité | I28: 800 | J28: 2 | K28: =listeVentes[[#This Row],[Prix de vente]]*listeVentes[[#This Row],[Quantité]] -> 1600
C29: 40 | D29: 2022-04-04 | E29: E1 | F29: Réfrigérateur WHIRLPOOL | G29: Electro | H29: 1 unité | I29: 800 | J29: 2 | K29: =listeVentes[[#This Row],[Prix de vente]]*listeVentes[[#This Row],[Quantité]] -> 1600
C30: 39 | D30: 2022-03-26 | E30: E1 | F30: Réfrigérateur WHIRLPOOL | G30: Electro | H30: 1 unité | I30: 800 | J30: 6 | K30: =listeVentes[[#This Row],[Prix de vente]]*listeVentes[[#This Row],[Quantité]] -> 4800
C31: 38 | D31: 2022-02-06 | E31: E1 | F31: Réfrigérateur WHIRLPOOL | G31: Electro | H31: 1 unité | I31: 800 | J31: 6 | K31: =listeVentes[[#This Row],[Prix de vente]]*listeVentes[[#This Row],[Quantité]] -> 4800
C32: 37 | D32: 2022-01-02 | E32: E1 | F32: Réfrigérateur WHIRLPOOL | G32: Electro | H32: 1 unité | I32: 800 | J32: 2 | K32: =listeVentes[[#This Row],[Prix de vente]]*listeVentes[[#This Row],[Quantité]] -> 1600
C33: 36 | D33: 2022-05-05 | E33: C2 | F33: NINTENDO SWITCH | G33: Consoles | H33: 1 unité | I33: 550 | J33: 2 | K33: =listeVentes[[#This Row],[Prix de vente]]*listeVentes[[#This Row],[Quantité]] -> 1100
C34: 35 | D34: 2022-04-04 | E34: C2 | F34: NINTENDO SWITCH | G34: Consoles | H34: 1 unité | I34: 550 | J34: 10 | K34: =listeVentes[[#This Row],[Prix de vente]]*listeVentes[[#This Row],[Quantité]] -> 5500
C35: 34 | D35: 2022-03-05 | E35: C2 | F35: NINTENDO SWITCH | G35: Consoles | H35: 1 unité | I35: 520 | J35: 6 | K35: =listeVentes[[#This Row],[Prix de vente]]*listeVentes[[#This Row],[Quantité]] -> 3120
C36: 33 | D36: 2022-02-09 | E36: C2 | F36: NINTENDO SWITCH | G36: Consoles | H36: 1 unité | I36: 600 | J36: 20 | K36: =listeVentes[[#This Row],[Prix de vente]]*listeVentes[[#This Row],[Quantité]] -> 12000
C37: 32 | D37: 2022-01-06 | E37: C2 | F37: NINTENDO SWITCH | G37: Consoles | H37: 1 unité | I37: 550 | J37: 6 | K37: =listeVentes[[#This Row],[Prix de vente]]*listeVentes[[#This Row],[Quantité]] -> 3300
C38: 31 | D38: 2022-05-03 | E38: C1 | F38: PLAYSTATION PS5 | G38: Consoles | H38: 1 unité | I38: 800 | J38: 10 | K38: =listeVentes[[#This Row],[Prix de vente]]*listeVentes[[#This Row],[Quantité]] -> 8000
C39: 30 | D39: 2022-04-21 | E39: C1 | F39: PLAYSTATION PS5 | G39: Consoles | H39: 1 unité | I39: 800 | J39: 5 | K39: =listeVentes[[#This Row],[Prix de vente]]*listeVentes[[#This Row],[Quantité]] -> 4000
C40: 29 | D40: 2022-03-06 | E40: C1 | F40: PLAYSTATION PS5 | G40: Consoles | H40: 1 unité | I40: 820 | J40: 10 | K40: =listeVentes[[#This Row],[Prix de vente]]*listeVentes[[#This Row],[Quantité]] -> 8200
C41: 28 | D41: 2022-02-05 | E41: C1 | F41: PLAYSTATION PS5 | G41: Consoles | H41: 1 unité | I41: 820 | J41: 5 | K41: =listeVentes[[#This Row],[Prix de vente]]*listeVentes[[#This Row],[Quantité]] -> 4100
C42: 27 | D42: 2022-01-02 | E42: C1 | F42: PLAYSTATION PS5 | G42: Consoles | H42: 1 unité | I42: 800 | J42: 10 | K42: =listeVentes[[#This Row],[Prix de vente]]*listeVentes[[#This Row],[Quantité]] -> 8000
C43: 26 | D43: 2022-05-06 | E43: S2 | F43: IPHONE 13 PRO | G43: SmartPhone | H43: 1 unité | I43: 1500 | J43: 12 | K43: =listeVentes[[#This Row],[Prix de vente]]*listeVentes[[#This Row],[Quantité]] -> 18000
C44: =C45+1 -> 25 | D44: 2022-04-04 | E44: S2 | F44: IPHONE 13 PRO | G44: SmartPhone | H44: 1 unité | I44: 1500 | J44: 30 | K44: =listeVentes[[#This Row],[Prix de vente]]*listeVentes[[#This Row],[Quantité]] -> 45000
C45: 24 | D45: 2022-03-06 | E45: S2 | F45: IPHONE 13 PRO | G45: SmartPhone | H45: 1 unité | I45: 1500 | J45: 15 | K45: =listeVentes[[#This Row],[Prix de vente]]*listeVentes[[#This Row],[Quantité]] -> 22500
C46: 23 | D46: 2022-02-02 | E46: S2 | F46: IPHONE 13 PRO | G46: SmartPhone | H46: 1 unité | I46: 1500 | J46: 20 | K46: =listeVentes[[#This Row],[Prix de vente]]*listeVentes[[#This Row],[Quantité]] -> 30000
C47: 22 | D47: 2022-01-02 | E47: S2 | F47: IPHONE 13 PRO | G47: SmartPhone | H47: 1 unité | I47: 1400 | J47: 10 | K47: =listeVentes[[#This Row],[Prix de vente]]*listeVentes[[#This Row],[Quantité]] -> 14000
C48: 21 | D48: 2022-05-06 | E48: S1 | F48: GOOGLE PIXEL 5 | G48: SmartPhone | H48: 1 unité | I48: 720 | J48: 23 | K48: =listeVentes[[#This Row],[Prix de vente]]*listeVentes[[#This Row],[Quantité]] -> 16560
C49: 20 | D49: 2022-04-09 | E49: S1 | F49: GOOGLE PIXEL 5 | G49: SmartPhone | H49: 1 unité | I49: 680 | J49: 2 | K49: =listeVentes[[#This Row],[Prix de vente]]*listeVentes[[#This Row],[Quantité]] -> 1360
C50: 19 | D50: 2022-03-06 | E50: S1 | F50: GOOGLE PIXEL 5 | G50: SmartPhone | H50: 1 unité | I50: 700 | J50: 20 | K50: =listeVentes[[#This Row],[Prix de vente]]*listeVentes[[#This Row],[Quantité]] -> 14000
C51: 18 | D51: 2022-02-22 | E51: S1 | F51: GOOGLE PIXEL 5 | G51: SmartPhone | H51: 1 unité | I51: 670 | J51: 5 | K51: =listeVentes[[#This Row],[Prix de vente]]*listeVentes[[#This Row],[Quantité]] -> 3350
C52: 17 | D52: 2022-01-26 | E52: S1 | F52: GOOGLE PIXEL 5 | G52: SmartPhone | H52: 1 unité | I52: 680 | J52: 8 | K52: =listeVentes[[#This Row],[Prix de vente]]*listeVentes[[#This Row],[Quantité]] -> 5440
C53: 16 | D53: 2022-04-22 | E53: B3 | F53: Oreo | G53: Biscuits | H53: Pack de 20 unités | I53: 4.6 | J53: 60 | K53: =listeVentes[[#This Row],[Prix de vente]]*listeVentes[[#This Row],[Quantité]] -> 276
C54: 15 | D54: 2022-04-01 | E54: B3 | F54: Oreo | G54: Biscuits | H54: Pack de 20 unités | I54: 5 | J54: 60 | K54: =listeVentes[[#This Row],[Prix de vente]]*listeVentes[[#This Row],[Quantité]] -> 300
C55: 14 | D55: 2022-03-09 | E55: B3 | F55: Oreo | G55: Biscuits | H55: Pack de 20 unités | I55: 5 | J55: 60 | K55: =listeVentes[[#This Row],[Prix de vente]]*listeVentes[[#This Row],[Quantité]] -> 300
C56: 13 | D56: 2022-02-06 | E56: B3 | F56: Oreo | G56: Biscuits | H56: Pack de 20 unités | I56: 5 | J56: 12 | K56: =listeVentes[[#This Row],[Prix de vente]]*listeVentes[[#This Row],[Quantité]] -> 60
C57: 12 | D57: 2022-05-08 | E57: B2 | F57: Oreo | G57: Biscuits | H57: Pack de 10 unités | I57: 3 | J57: 10 | K57: =listeVentes[[#This Row],[Prix de vente]]*listeVentes[[#This Row],[Quantité]] -> 30
C58: 11 | D58: 2022-04-05 | E58: B2 | F58: Oreo | G58: Biscuits | H58: Pack de 10 unités | I58: 2.7 | J58: 15 | K58: =listeVentes[[#This Row],[Prix de vente]]*listeVentes[[#This Row],[Quantité]] -> 40.5
C59: 10 | D59: 2022-03-03 | E59: B2 | F59: Oreo | G59: Biscuits | H59: Pack de 10 unités | I59: 2.6 | J59: 15 | K59: =listeVentes[[#This Row],[Prix de vente]]*listeVentes[[#This Row],[Quantité]] -> 39
C60: 9 | D60: 2022-02-03 | E60: B2 | F60: Oreo | G60: Biscuits | H60: Pack de 10 unités | I60: 2.5 | J60: 2 | K60: =listeVentes[[#This Row],[Prix de vente]]*listeVentes[[#This Row],[Quantité]] -> 5
C61: 8 | D61: 2022-05-22 | E61: B1 | F61: Oreo | G61: Biscuits | H61: 1 unité | I61: 0.3 | J61: 4 | K61: =listeVentes[[#This Row],[Prix de vente]]*listeVentes[[#This Row],[Quantité]] -> 1.2
C62: 7 | D62: 2022-04-04 | E62: B1 | F62: Oreo | G62: Biscuits | H62: 1 unité | I62: 0.3 | J62: 15 | K62: =listeVentes[[#This Row],[Prix de vente]]*listeVentes[[#This Row],[Quantité]] -> 4.5
C63: 6 | D63: 2022-03-06 | E63: B1 | F63: Oreo | G63: Biscuits | H63: 1 unité | I63: 0.3 | J63: 20 | K63: =listeVentes[[#This Row],[Prix de vente]]*listeVentes[[#This Row],[Quantité]] -> 6
C64: 5 | D64: 2022-02-05 | E64: B1 | F64: Oreo | G64: Biscuits | H64: 1 unité | I64: 0.3 | J64: 15 | K64: =listeVentes[[#This Row],[Prix de vente]]*listeVentes[[#This Row],[Quantité]] -> 4.5
C65: 4 | D65: 2022-01-23 | E65: B2 | F65: Oreo | G65: Biscuits | H65: Pack de 10 unités | I65: 3 | J65: 6 | K65: =listeVentes[[#This Row],[Prix de vente]]*listeVentes[[#This Row],[Quantité]] -> 18

Sheet Inventaire
C3: Détails d'inventaire
C5: Référence | D5: Désignation | E5: Catégorie | F5: Unité | G5: Seuil d'alerte | H5: Stock initial | I5: Entrées | J5: Sorties | K5: Stock final | L5: CUMP | M5: Valeur | N5: Statue
C6: S1 | D6: =IFERROR(VLOOKUP(listeInventaire[[#This Row],[Référence]],listeProduits[],2,FALSE),"") -> GOOGLE PIXEL 5 | E6: =IFERROR(VLOOKUP(listeInventaire[[#This Row],[Référence]],listeProduits[],3,FALSE),"") -> SmartPhone | F6: =IFERROR(VLOOKUP(listeInventaire[[#This Row],[Référence]],listeProduits[],4,FALSE),"") -> 1 unité | G6: =IFERROR(VLOOKUP(listeInventaire[[#This Row],[Référence]],listeProduits[],5,FALSE),"") -> 10 | H6: =IFERROR(VLOOKUP(listeInventaire[[#This Row],[Référence]],listeProduits[],6,FALSE),"") -> 20 | I6: =SUMIF(listeAchats[Référence],listeInventaire[[#This Row],[Référence]],listeAchats[Quantité]) -> 55 | J6: =SUMIF(listeVentes[Référence],listeInventaire[[#This Row],[Référence]],listeVentes[Quantité]) -> 60 | K6: =IFERROR(listeInventaire[[#This Row],[Stock initial]]+listeInventaire[[#This Row],[Entrées]]-listeInventaire[[#This Row],[Sorties]],"") -> 15 | L6: =IFERROR((VLOOKUP(listeInventaire[[#This Row],[Référence]],listeProduits[],8,FALSE)+SUMIF(listeAchats[Référence],listeInventaire[[#This Row],[Référence]],listeAchats[Total]))/(VLOOKUP(listeInventaire[[#This Row],[Référence]],listeProduits[],6,FALSE)+SUMIF(listeAchats[Référence],listeInventaire[[#This Row],[Référence]],listeAchats[Quantité])),"") -> 599.4666667 | M6: =IFERROR(listeInventaire[[#This Row],[Stock final]]*listeInventaire[[#This Row],[CUMP]],"") -> 8992 | N6: =IF(listeInventaire[[#This Row],[Stock final]]>listeInventaire[[#This Row],[Seuil d''alerte]],"Stock normal",IF(listeInventaire[[#This Row],[Stock final]]=0,"Non disponible","Stock faible")) -> Stock normal
C7: S2 | D7: =IFERROR(VLOOKUP(listeInventaire[[#This Row],[Référence]],listeProduits[],2,FALSE),"") -> IPHONE 13 PRO | E7: =IFERROR(VLOOKUP(listeInventaire[[#This Row],[Référence]],listeProduits[],3,FALSE),"") -> SmartPhone | F7: =IFERROR(VLOOKUP(listeInventaire[[#This Row],[Référence]],listeProduits[],4,FALSE),"") -> 1 unité | G7: =IFERROR(VLOOKUP(listeInventaire[[#This Row],[Référence]],listeProduits[],5,FALSE),"") -> 10 | H7: =IFERROR(VLOOKUP(listeInventaire[[#This Row],[Référence]],listeProduits[],6,FALSE),"") -> 3 | I7: =SUMIF(listeAchats[Référence],listeInventaire[[#This Row],[Référence]],listeAchats[Quantité]) -> 96 | J7: =SUMIF(listeVentes[Référence],listeInventaire[[#This Row],[Référence]],listeVentes[Quantité]) -> 87 | K7: =IFERROR(listeInventaire[[#This Row],[Stock initial]]+listeInventaire[[#This Row],[Entrées]]-listeInventaire[[#This Row],[Sorties]],"") -> 12 | L7: =IFERROR((VLOOKUP(listeInventaire[[#This Row],[Référence]],listeProduits[],8,FALSE)+SUMIF(listeAchats[Référence],listeInventaire[[#This Row],[Référence]],listeAchats[Total]))/(VLOOKUP(listeInventaire[[#This Row],[Référence]],listeProduits[],6,FALSE)+SUMIF(listeAchats[Référence],listeInventaire[[#This Row],[Référence]],listeAchats[Quantité])),"") -> 1400 | M7: =IFERROR(listeInventaire[[#This Row],[Stock final]]*listeInventaire[[#This Row],[CUMP]],"") -> 16800 | N7: =IF(listeInventaire[[#This Row],[Stock final]]>listeInventaire[[#This Row],[Seuil d''alerte]],"Stock normal",IF(listeInventaire[[#This Row],[Stock final]]=0,"Non disponible","Stock faible")) -> Stock normal
C8: B1 | D8: =IFERROR(VLOOKUP(listeInventaire[[#This Row],[Référence]],listeProduits[],2,FALSE),"") -> Oreo | E8: =IFERROR(VLOOKUP(listeInventaire[[#This Row],[Référence]],listeProduits[],3,FALSE),"") -> Biscuits | F8: =IFERROR(VLOOKUP(listeInventaire[[#This Row],[Référence]],listeProduits[],4,FALSE),"") -> 1 unité | G8: =IFERROR(VLOOKUP(listeInventaire[[#This Row],[Référence]],listeProduits[],5,FALSE),"") -> 10 | H8: =IFERROR(VLOOKUP(listeInventaire[[#This Row],[Référence]],listeProduits[],6,FALSE),"") -> 10 | I8: =SUMIF(listeAchats[Référence],listeInventaire[[#This Row],[Référence]],listeAchats[Quantité]) -> 85 | J8: =SUMIF(listeVentes[Référence],listeInventaire[[#This Row],[Référence]],listeVentes[Quantité]) -> 74 | K8: =IFERROR(listeInventaire[[#This Row],[Stock initial]]+listeInventaire[[#This Row],[Entrées]]-listeInventaire[[#This Row],[Sorties]],"") -> 21 | L8: =IFERROR((VLOOKUP(listeInventaire[[#This Row],[Référence]],listeProduits[],8,FALSE)+SUMIF(listeAchats[Référence],listeInventaire[[#This Row],[Référence]],listeAchats[Total]))/(VLOOKUP(listeInventaire[[#This Row],[Référence]],listeProduits[],6,FALSE)+SUMIF(listeAchats[Référence],listeInventaire[[#This Row],[Référence]],listeAchats[Quantité])),"") -> 0.21 | M8: =IFERROR(listeInventaire[[#This Row],[Stock final]]*listeInventaire[[#This Row],[CUMP]],"") -> 4.41 | N8: =IF(listeInventaire[[#This Row],[Stock final]]>listeInventaire[[#This Row],[Seuil d''alerte]],"Stock normal",IF(listeInventaire[[#This Row],[Stock final]]=0,"Non disponible","Stock faible")) -> Stock normal
C9: B2 | D9: =IFERROR(VLOOKUP(listeInventaire[[#This Row],[Référence]],listeProduits[],2,FALSE),"") -> Oreo | E9: =IFERROR(VLOOKUP(listeInventaire[[#This Row],[Référence]],listeProduits[],3,FALSE),"") -> Biscuits | F9: =IFERROR(VLOOKUP(listeInventaire[[#This Row],[Référence]],listeProduits[],4,FALSE),"") -> Pack de 10 unités | G9: =IFERROR(VLOOKUP(listeInventaire[[#This Row],[Référence]],listeProduits[],5,FALSE),"") -> 50 | H9: =IFERROR(VLOOKUP(listeInventaire[[#This Row],[Référence]],listeProduits[],6,FALSE),"") -> 15 | I9: =SUMIF(listeAchats[Référence],listeInventaire[[#This Row],[Référence]],listeAchats[Quantité]) -> 144 | J9: =SUMIF(listeVentes[Référence],listeInventaire[[#This Row],[Référence]],listeVentes[Quantité]) -> 58 | K9: =IFERROR(listeInventaire[[#This Row],[Stock initial]]+listeInventaire[[#This Row],[Entrées]]-listeInventaire[[#This Row],[Sorties]],"") -> 101 | L9: =IFERROR((VLOOKUP(listeInventaire[[#This Row],[Référence]],listeProduits[],8,FALSE)+SUMIF(listeAchats[Référence],listeInventaire[[#This Row],[Référence]],listeAchats[Total]))/(VLOOKUP(listeInventaire[[#This Row],[Référence]],listeProduits[],6,FALSE)+SUMIF(listeAchats[Référence],listeInventaire[[#This Row],[Référence]],listeAchats[Quantité])),"") -> 2 | M9: =IFERROR(listeInventaire[[#This Row],[Stock final]]*listeInventaire[[#This Row],[CUMP]],"") -> 202 | N9: =IF(listeInventaire[[#This Row],[Stock final]]>listeInventaire[[#This Row],[Seuil d''alerte]],"Stock normal",IF(listeInventaire[[#This Row],[Stock final]]=0,"Non disponible","Stock faible")) -> Stock normal
C10: B3 | D10: =IFERROR(VLOOKUP(listeInventaire[[#This Row],[Référence]],listeProduits[],2,FALSE),"") -> Oreo | E10: =IFERROR(VLOOKUP(listeInventaire[[#This Row],[Référence]],listeProduits[],3,FALSE),"") -> Biscuits | F10: =IFERROR(VLOOKUP(listeInventaire[[#This Row],[Référence]],listeProduits[],4,FALSE),"") -> Pack de 20 unités | G10: =IFERROR(VLOOKUP(listeInventaire[[#This Row],[Référence]],listeProduits[],5,FALSE),"") -> 20 | H10: =IFERROR(VLOOKUP(listeInventaire[[#This Row],[Référence]],listeProduits[],6,FALSE),"") -> 5 | I10: =SUMIF(listeAchats[Référence],listeInventaire[[#This Row],[Référence]],listeAchats[Quantité]) -> 310 | J10: =SUMIF(listeVentes[Référence],listeInventaire[[#This Row],[Référence]],listeVentes[Quantité]) -> 192 | K10: =IFERROR(listeInventaire[[#This Row],[Stock initial]]+listeInventaire[[#This Row],[Entrées]]-listeInventaire[[#This Row],[Sorties]],"") -> 123 | L10: =IFERROR((VLOOKUP(listeInventaire[[#This Row],[Référence]],listeProduits[],8,FALSE)+SUMIF(listeAchats[Référence],listeInventaire[[#This Row],[Référence]],listeAchats[Total]))/(VLOOKUP(listeInventaire[[#This Row],[Référence]],listeProduits[],6,FALSE)+SUMIF(listeAchats[Référence],listeInventaire[[#This Row],[Référence]],listeAchats[Quantité])),"") -> 4 | M10: =IFERROR(listeInventaire[[#This Row],[Stock final]]*listeInventaire[[#This Row],[CUMP]],"") -> 492 | N10: =IF(listeInventaire[[#This Row],[Stock final]]>listeInventaire[[#This Row],[Seuil d''alerte]],"Stock normal",IF(listeInventaire[[#This Row],[Stock final]]=0,"Non disponible","Stock faible")) -> Stock normal
C11: E1 | D11: =IFERROR(VLOOKUP(listeInventaire[[#This Row],[Référence]],listeProduits[],2,FALSE),"") -> Réfrigérateur WHIRLPOOL | E11: =IFERROR(VLOOKUP(listeInventaire[[#This Row],[Référence]],listeProduits[],3,FALSE),"") -> Electro | F11: =IFERROR(VLOOKUP(listeInventaire[[#This Row],[Référence]],listeProduits[],4,FALSE),"") -> 1 unité | G11: =IFERROR(VLOOKUP(listeInventaire[[#This Row],[Référence]],listeProduits[],5,FALSE),"") -> 10 | H11: =IFERROR(VLOOKUP(listeInventaire[[#This Row],[Référence]],listeProduits[],6,FALSE),"") -> 5 | I11: =SUMIF(listeAchats[Référence],listeInventaire[[#This Row],[Référence]],listeAchats[Quantité]) -> 24 | J11: =SUMIF(listeVentes[Référence],listeInventaire[[#This Row],[Référence]],listeVentes[Quantité]) -> 21 | K11: =IFERROR(listeInventaire[[#This Row],[Stock initial]]+listeInventaire[[#This Row],[Entrées]]-listeInventaire[[#This Row],[Sorties]],"") -> 8 | L11: =IFERROR((VLOOKUP(listeInventaire[[#This Row],[Référence]],listeProduits[],8,FALSE)+SUMIF(listeAchats[Référence],listeInventaire[[#This Row],[Référence]],listeAchats[Total]))/(VLOOKUP(listeInventaire[[#This Row],[Référence]],listeProduits[],6,FALSE)+SUMIF(listeAchats[Référence],listeInventaire[[#This Row],[Référence]],listeAchats[Quantité])),"") -> 700 | M11: =IFERROR(listeInventaire[[#This Row],[Stock final]]*listeInventaire[[#This Row],[CUMP]],"") -> 5600 | N11: =IF(listeInventaire[[#This Row],[Stock final]]>listeInventaire[[#This Row],[Seuil d''alerte]],"Stock normal",IF(listeInventaire[[#This Row],[Stock final]]=0,"Non disponible","Stock faible")) -> Stock faible
C12: E2 | D12: =IFERROR(VLOOKUP(listeInventaire[[#This Row],[Référence]],listeProduits[],2,FALSE),"") -> Réfrigérateur SIERA | E12: =IFERROR(VLOOKUP(listeInventaire[[#This Row],[Référence]],listeProduits[],3,FALSE),"") -> Electro | F12: =IFERROR(VLOOKUP(listeInventaire[[#This Row],[Référence]],listeProduits[],4,FALSE),"") -> 1 unité | G12: =IFERROR(VLOOKUP(listeInventaire[[#This Row],[Référence]],listeProduits[],5,FALSE),"") -> 10 | H12: =IFERROR(VLOOKUP(listeInventaire[[#This Row],[Référence]],listeProduits[],6,FALSE),"") -> 3 | I12: =SUMIF(listeAchats[Référence],listeInventaire[[#This Row],[Référence]],listeAchats[Quantité]) -> 40 | J12: =SUMIF(listeVentes[Référence],listeInventaire[[#This Row],[Référence]],listeVentes[Quantité]) -> 24 | K12: =IFERROR(listeInventaire[[#This Row],[Stock initial]]+listeInventaire[[#This Row],[Entrées]]-listeInventaire[[#This Row],[Sorties]],"") -> 19 | L12: =IFERROR((VLOOKUP(listeInventaire[[#This Row],[Référence]],listeProduits[],8,FALSE)+SUMIF(listeAchats[Référence],listeInventaire[[#This Row],[Référence]],listeAchats[Total]))/(VLOOKUP(listeInventaire[[#This Row],[Référence]],listeProduits[],6,FALSE)+SUMIF(listeAchats[Référence],listeInventaire[[#This Row],[Référence]],listeAchats[Quantité])),"") -> 300 | M12: =IFERROR(listeInventaire[[#This Row],[Stock final]]*listeInventaire[[#This Row],[CUMP]],"") -> 5700 | N12: =IF(listeInventaire[[#This Row],[Stock final]]>listeInventaire[[#This Row],[Seuil d''alerte]],"Stock normal",IF(listeInventaire[[#This Row],[Stock final]]=0,"Non disponible","Stock faible")) -> Stock normal
C13: E3 | D13: =IFERROR(VLOOKUP(listeInventaire[[#This Row],[Référence]],listeProduits[],2,FALSE),"") -> Cuisinière SIERA | E13: =IFERROR(VLOOKUP(listeInventaire[[#This Row],[Référence]],listeProduits[],3,FALSE),"") -> Electro | F13: =IFERROR(VLOOKUP(listeInventaire[[#This Row],[Référence]],listeProduits[],4,FALSE),"") -> 1 unité | G13: =IFERROR(VLOOKUP(listeInventaire[[#This Row],[Référence]],listeProduits[],5,FALSE),"") -> 10 | H13: =IFERROR(VLOOKUP(listeInventaire[[#This Row],[Référence]],listeProduits[],6,FALSE),"") -> 6 | I13: =SUMIF(listeAchats[Référence],listeInventaire[[#This Row],[Référence]],listeAchats[Quantité]) -> 65 | J13: =SUMIF(listeVentes[Référence],listeInventaire[[#This Row],[Référence]],listeVentes[Quantité]) -> 28 | K13: =IFERROR(listeInventaire[[#This Row],[Stock initial]]+listeInventaire[[#This Row],[Entrées]]-listeInventaire[[#This Row],[Sorties]],"") -> 43 | L13: =IFERROR((VLOOKUP(listeInventaire[[#This Row],[Référence]],listeProduits[],8,FALSE)+SUMIF(listeAchats[Référence],listeInventaire[[#This Row],[Référence]],listeAchats[Total]))/(VLOOKUP(listeInventaire[[#This Row],[Référence]],listeProduits[],6,FALSE)+SUMIF(listeAchats[Référence],listeInventaire[[#This Row],[Référence]],listeAchats[Quantité])),"") -> 150 | M13: =IFERROR(listeInventaire[[#This Row],[Stock final]]*listeInventaire[[#This Row],[CUMP]],"") -> 6450 | N13: =IF(listeInventaire[[#This Row],[Stock final]]>listeInventaire[[#This Row],[Seuil d''alerte]],"Stock normal",IF(listeInventaire[[#This Row],[Stock final]]=0,"Non disponible","Stock faible")) -> Stock normal
C14: E4 | D14: =IFERROR(VLOOKUP(listeInventaire[[#This Row],[Référence]],listeProduits[],2,FALSE),"") -> Cuisinière CANDY | E14: =IFERROR(VLOOKUP(listeInventaire[[#This Row],[Référence]],listeProduits[],3,FALSE),"") -> Electro | F14: =IFERROR(VLOOKUP(listeInventaire[[#This Row],[Référence]],listeProduits[],4,FALSE),"") -> 1 unité | G14: =IFERROR(VLOOKUP(listeInventaire[[#This Row],[Référence]],listeProduits[],5,FALSE),"") -> 10 | H14: =IFERROR(VLOOKUP(listeInventaire[[#This Row],[Référence]],listeProduits[],6,FALSE),"") -> 0 | I14: =SUMIF(listeAchats[Référence],listeInventaire[[#This Row],[Référence]],listeAchats[Quantité]) -> 60 | J14: =SUMIF(listeVentes[Référence],listeInventaire[[#This Row],[Référence]],listeVentes[Quantité]) -> 60 | K14: =IFERROR(listeInventaire[[#This Row],[Stock initial]]+listeInventaire[[#This Row],[Entrées]]-listeInventaire[[#This Row],[Sorties]],"") -> 0 | L14: =IFERROR((VLOOKUP(listeInventaire[[#This Row],[Référence]],listeProduits[],8,FALSE)+SUMIF(listeAchats[Référence],listeInventaire[[#This Row],[Référence]],listeAchats[Total]))/(VLOOKUP(listeInventaire[[#This Row],[Référence]],listeProduits[],6,FALSE)+SUMIF(listeAchats[Référence],listeInventaire[[#This Row],[Référence]],listeAchats[Quantité])),"") -> 500 | M14: =IFERROR(listeInventaire[[#This Row],[Stock final]]*listeInventaire[[#This Row],[CUMP]],"") -> 0 | N14: =IF(listeInventaire[[#This Row],[Stock final]]>listeInventaire[[#This Row],[Seuil d''alerte]],"Stock normal",IF(listeInventaire[[#This Row],[Stock final]]=0,"Non disponible","Stock faible")) -> Non disponible
C15: C1 | D15: =IFERROR(VLOOKUP(listeInventaire[[#This Row],[Référence]],listeProduits[],2,FALSE),"") -> PLAYSTATION PS5 | E15: =IFERROR(VLOOKUP(listeInventaire[[#This Row],[Référence]],listeProduits[],3,FALSE),"") -> Consoles | F15: =IFERROR(VLOOKUP(listeInventaire[[#This Row],[Référence]],listeProduits[],4,FALSE),"") -> 1 unité | G15: =IFERROR(VLOOKUP(listeInventaire[[#This Row],[Référence]],listeProduits[],5,FALSE),"") -> 10 | H15: =IFERROR(VLOOKUP(listeInventaire[[#This Row],[Référence]],listeProduits[],6,FALSE),"") -> 3 | I15: =SUMIF(listeAchats[Référence],listeInventaire[[#This Row],[Référence]],listeAchats[Quantité]) -> 50 | J15: =SUMIF(listeVentes[Référence],listeInventaire[[#This Row],[Référence]],listeVentes[Quantité]) -> 40 | K15: =IFERROR(listeInventaire[[#This Row],[Stock initial]]+listeInventaire[[#This Row],[Entrées]]-listeInventaire[[#This Row],[Sorties]],"") -> 13 | L15: =IFERROR((VLOOKUP(listeInventaire[[#This Row],[Référence]],listeProduits[],8,FALSE)+SUMIF(listeAchats[Référence],listeInventaire[[#This Row],[Référence]],listeAchats[Total]))/(VLOOKUP(listeInventaire[[#This Row],[Référence]],listeProduits[],6,FALSE)+SUMIF(listeAchats[Référence],listeInventaire[[#This Row],[Référence]],listeAchats[Quantité])),"") -> 751.8867925 | M15: =IFERROR(listeInventaire[[#This Row],[Stock final]]*listeInventaire[[#This Row],[CUMP]],"") -> 9774.528302 | N15: =IF(listeInventaire[[#This Row],[Stock final]]>listeInventaire[[#This Row],[Seuil d''alerte]],"Stock normal",IF(listeInventaire[[#This Row],[Stock final]]=0,"Non disponible","Stock faible")) -> Stock normal
C16: C2 | D16: =IFERROR(VLOOKUP(listeInventaire[[#This Row],[Référence]],listeProduits[],2,FALSE),"") -> NINTENDO SWITCH | E16: =IFERROR(VLOOKUP(listeInventaire[[#This Row],[Référence]],listeProduits[],3,FALSE),"") -> Consoles | F16: =IFERROR(VLOOKUP(listeInventaire[[#This Row],[Référence]],listeProduits[],4,FALSE),"") -> 1 unité | G16: =IFERROR(VLOOKUP(listeInventaire[[#This Row],[Référence]],listeProduits[],5,FALSE),"") -> 10 | H16: =IFERROR(VLOOKUP(listeInventaire[[#This Row],[Référence]],listeProduits[],6,FALSE),"") -> 6 | I16: =SUMIF(listeAchats[Référence],listeInventaire[[#This Row],[Référence]],listeAchats[Quantité]) -> 40 | J16: =SUMIF(listeVentes[Référence],listeInventaire[[#This Row],[Référence]],listeVentes[Quantité]) -> 44 | K16: =IFERROR(listeInventaire[[#This Row],[Stock initial]]+listeInventaire[[#This Row],[Entrées]]-listeInventaire[[#This Row],[Sorties]],"") -> 2 | L16: =IFERROR((VLOOKUP(listeInventaire[[#This Row],[Référence]],listeProduits[],8,FALSE)+SUMIF(listeAchats[Référence],listeInventaire[[#This Row],[Référence]],listeAchats[Total]))/(VLOOKUP(listeInventaire[[#This Row],[Référence]],listeProduits[],6,FALSE)+SUMIF(listeAchats[Référence],listeInventaire[[#This Row],[Référence]],listeAchats[Quantité])),"") -> 407.0652174 | M16: =IFERROR(listeInventaire[[#This Row],[Stock final]]*listeInventaire[[#This Row],[CUMP]],"") -> 814.1304348 | N16: =IF(listeInventaire[[#This Row],[Stock final]]>listeInventaire[[#This Row],[Seuil d''alerte]],"Stock normal",IF(listeInventaire[[#This Row],[Stock final]]=0,"Non disponible","Stock faible")) -> Stock faible

Sheet Analyse
B2: Qté Stock final | C2: Valeur Stock final
B3: 357 | C3: 54829.06874
B6: Somme de Quantité | C6: Somme de Total
B7: 969 | C7: 291380
B11: Qté sortie | C11: Valeur Qté Sortie
B12: 688 | C12: 297903.7
B15: Catégorie | C15: Qté finale par Catégorie
B16: Biscuits | C16: 245
B17: Consoles | C17: 15
B18: Electro | C18: 70
B19: SmartPhone | C19: 27
B24: Catégorie | C24: Valeur finale par Catégorie
B25: Biscuits | C25: 698.41
B26: Consoles | C26: 10588.65874
B27: Electro | C27: 17750
B28: SmartPhone | C28: 25792
B34: Catégorie | C34: Somme de Quantité
B35: Biscuits | C35: 539
B36: Consoles | C36: 90 | CT36: LesMois | CV36: Catégorie | CX36: Référence
B37: Electro | C37: 189 | CT37: janv | CV37: SmartPhone | CX37: S2
B38: SmartPhone | C38: 151 | CT38: févr | CV38: Consoles | CX38: C2
CT39: mars | CV39: Electro | CX39: C1
CT40: avr | CV40: Biscuits | CX40: E4
CT41: mai | CX41: E3
CX42: E2
CX43: E1
B44: Catégorie | C44: Somme de Total | CX44: S1
B45: Biscuits | C45: 1545 | CX45: B1
B46: Consoles | C46: 53925 | CX46: B2
B47: Electro | C47: 68550 | CX47: B3
B48: SmartPhone | C48: 167360
B53: Catégorie | C53: Qté sortie par Catégorie
B54: Biscuits | C54: 324
B55: Consoles | C55: 84
B56: Electro | C56: 133
B57: SmartPhone | C57: 147
B64: Catégorie | C64: Valeur Qté Sortie par Catégorie
B65: Biscuits | C65: 1113.7
B66: Consoles | C66: 57320
B67: Electro | C67: 67960
B68: SmartPhone | C68: 171510
B74: Mois | C74: Somme de Quantité
B75: janv | C75: 114 | E75: =B75 -> janv | F75: =_xlfn.XLOOKUP(E75,B75:B79,C75:C79,"0",0) -> 114 | G75: =IF(F75=MAX($F$75:$F$79),F75,"") -> 
B76: févr | C76: 184 | E76: =B76 -> févr | F76: =_xlfn.XLOOKUP(E76,B76:B80,C76:C80,"0",0) -> 184 | G76: =IF(F76=MAX($F$75:$F$79),F76,"") -> 
B77: mars | C77: 142 | E77: mars | F77: 142
B78: avr | C78: 106 | E78: avr | F78: 106
B79: mai | C79: 423 | E79: mai | F79: 423 | G79: 423
B86: Mois | C86: Somme de Quantité
B87: janv | C87: 57 | E87: =B87 -> janv | F87: =_xlfn.XLOOKUP(E87,B87:B91,C87:C91,"",0) -> 57 | G87: =IF(F87=MAX($F$87:$F$91),F87,"") -> 
B88: févr | C88: 100 | E88: =B88 -> févr | F88: =_xlfn.XLOOKUP(E88,B88:B92,C88:C92,"",0) -> 100 | G88: =IF(F88=MAX($F$87:$F$91),F88,"") -> 
B89: mars | C89: 187 | E89: mars | F89: 187
B90: avr | C90: 253 | E90: avr | F90: 253 | G90: 253
B91: mai | C91: 91 | E91: mai | F91: 91
B99: Mois | C99: Somme de Total2 | D99: Somme de Total
B100: janv | C100: 51500 | D100: 51500 | F100: =B100 -> janv | G100: =_xlfn.XLOOKUP(F100,$B$100:$B$104,$C$100:$C$104,"",0) -> 51500 | H100: =_xlfn.XLOOKUP(F100,$B$100:$B$104,$D$100:$D$104,"",0) -> 51500
B101: févr | C101: 76664 | D101: 76664 | F101: =B101 -> févr | G101: =_xlfn.XLOOKUP(F101,$B$100:$B$104,$C$100:$C$104,"",0) -> 76664 | H101: =_xlfn.XLOOKUP(F101,$B$100:$B$104,$D$100:$D$104,"",0) -> 76664
B102: mars | C102: 38248 | D102: 38248 | F102: mars | G102: =_xlfn.XLOOKUP(F102,$B$100:$B$104,$C$100:$C$104,"",0) -> 38248 | H102: 38248
B103: avr | C103: 48081 | D103: 48081 | F103: avr | G103: 48081 | H103: 48081
B104: mai | C104: 76887 | D104: 76887 | F104: mai | G104: 76887 | H104: 76887
B110: Mois | C110: Somme de Total | D110: Somme de Total2
B111: janv | C111: 38358 | D111: 38358 | F111: =B111 -> janv | G111: =_xlfn.XLOOKUP(F111,$B$111:$B$115,$C$111:$C$115,"",0) -> 38358 | H111: =_xlfn.XLOOKUP(F111,$B$111:$B$115,$D$111:$D$115,"",0) -> 38358
B112: févr | C112: 60319.5 | D112: 60319.5 | F112: =B112 -> févr | G112: =_xlfn.XLOOKUP(F112,$B$111:$B$115,$C$111:$C$115,"",0) -> 60319.5 | H112: =_xlfn.XLOOKUP(F112,$B$111:$B$115,$D$111:$D$115,"",0) -> 60319.5
B113: mars | C113: 69065 | D113: 69065 | F113: mars | G113: 69065 | H113: 69065
B114: avr | C114: 74985 | D114: 74985 | F114: avr | G114: 74985 | H114: 74985
B115: mai | C115: 55176.2 | D115: 55176.2 | F115: mai | G115: 55176.2 | H115: 55176.2
B122: Désignations | C122: Somme de Total
B123: IPHONE 13 PRO | C123: 129500
B124: GOOGLE PIXEL 5 | C124: 42010
B125: Cuisinière CANDY | C125: 35400
B134: Statue | C134: (Plusieurs éléments)
B136: Désignations | C136: Somme de Stock final
B137: Cuisinière CANDY | C137: 0 | E137: =IF(B137<>0,B137,"Pas de marchandise") -> Cuisinière CANDY | F137: =_xlfn.XLOOKUP(E137,$B$137:$B$139,$C$137:$C$139,"",0) -> 0 | G137: =IF(F137>0,"Stock faible","Non disponible") -> Non disponible
B138: NINTENDO SWITCH | C138: 2 | E138: =IF(B138<>0,B138,"Pas de marchandise") -> NINTENDO SWITCH | F138: =_xlfn.XLOOKUP(E138,$B$137:$B$139,$C$137:$C$139,"",0) -> 2 | G138: =IF(F138>0,"Stock faible","Non disponible") -> Stock faible
B139: Réfrigérateur WHIRLPOOL | C139: 8 | E139: =IF(B139<>0,B139,"Pas de marchandise") -> Réfrigérateur WHIRLPOOL | F139: =_xlfn.XLOOKUP(E139,$B$137:$B$139,$C$137:$C$139,"",0) -> 8 | G139: Stock faible

Sheet Tableau De Bord
R1: Dernière mise à Jour | T1: 2026-08-01T17:17:00
